bitfinex/quotes_ETHUSD_20230113
["timestamp","ask_amount","ask_price","bid_price","bid_amount"]
[1673628738405,47.7103567,1412.4,1412.3,0.09286419]
[1673628738610,52.5721771,1412.4,1412.3,0.09286419]
[1673628738856,2.5,1412.3,1412.2,0.09286419]
[1673628739078,38.5357771,1412.3,1412.2,0.09286419]
[1673628739282,38.6017771,1412.3,1412.2,0.09286419]
[1673628739561,39.1328771,1412.3,1412.2,0.09286419]
[1673628739809,41.90475272,1412.3,1412.2,0.09286419]
[1673628740537,39.40475272,1412.3,1412.2,0.09286419]
[1673628740757,35.79842,1412.3,1412.2,0.09286419]
[1673628741802,33.40742,1412.3,1412.2,0.09286419]
[1673628742427,18.71504,1412.3,1412.2,0.09286419]
[1673628742743,25.79568,1412.3,1412.2,0.09286419]
[1673628744552,26.32678,1412.3,1412.2,0.09286419]
[1673628744706,19.24614,1412.3,1412.2,0.09286419]
[1673628744920,18.71504,1412.3,1412.2,0.09286419]
[1673628745620,25.79568,1412.3,1412.2,0.09286419]
[1673628745987,32.87632,1412.3,1412.2,0.09286419]
[1673628746673,33.40742,1412.3,1412.2,0.09286419]
[1673628746982,37.01375272,1412.3,1412.2,0.09286419]
[1673628747201,38.20575272,1412.3,1412.0,0.09715619]
[1673628747354,11.21572438,1412.2,1412.0,3.8e-07]
[1673628747727,35.0256,1412.1,1412.0,3.8e-07]
[1673628747884,56.0966,1412.1,1412.0,3.8e-07]
[1673628748252,76.0966,1412.1,1412.0,3.8e-07]
[1673628749179,65.31595,1412.1,1412.0,3.8e-07]
[1673628749402,58.2343,1412.1,1412.0,3.8e-07]
[1673628749724,47.92265,1412.1,1412.0,3.8e-07]
[1673628750342,62.08595,1412.1,1412.0,3.8e-07]
[1673628750841,62.31595,1412.1,1412.0,3.8e-07]
[1673628751186,67.12128272,1412.1,1412.0,3.8e-07]
[1673628751625,70.12128272,1412.1,1412.0,3.8e-07]
[1673628753459,65.31595,1412.1,1412.0,3.8e-07]
[1673628754776,68.92228272,1412.1,1412.0,3.8e-07]
[1673628756829,76.37028272,1412.1,1412.0,3.8e-07]
[1673628757076,81.82028272,1412.1,1412.0,3.8e-07]
[1673628758355,70.12128272,1412.1,1412.0,3.8e-07]
[1673628759691,77.56928272,1412.1,1412.0,3.8e-07]
[1673628760147,82.35148272,1412.1,1412.0,3.8e-07]
[1673628763471,87.9180071,1412.1,1412.0,3.8e-07]
[1673628763685,0.002,1411.9,1411.4,7.73538662]
[1673628763898,29.5326,1411.8,1411.4,7.73538662]
[1673628764132,29.5986,1411.8,1411.4,7.73538662]
[1673628764349,20.23,1411.7,1411.4,7.73538662]
[1673628764521,28.3366,1411.6,1411.4,7.73538662]
[1673628764744,28.4026,1411.6,1411.4,0.18228662]
[1673628764974,28.4026,1411.6,1411.4,0.11685679]
[1673628765493,21.31845,1411.6,1411.4,0.11685679]
[1673628767467,21.84985,1411.6,1411.4,0.11685679]
[1673628767996,21.31845,1411.6,1411.4,0.11685679]
[1673628769372,1.429,1411.5,1411.4,0.11685679]
[1673628769586,38.73261272,1411.5,1411.4,0.11685679]
[1673628769928,37.59961272,1411.5,1411.4,0.11685679]
[1673628770178,33.99328,1411.5,1411.4,0.11685679]
[1673628770515,33.76328,1411.5,1411.4,0.11685679]
[1673628770860,33.99328,1411.5,1411.4,0.11685679]
[1673628774030,36.99328,1411.5,1411.4,0.11685679]
[1673628774345,40.59961272,1411.5,1411.4,0.11685679]
[1673628774517,61.13101272,1411.5,1411.4,0.11685679]
[1673628774732,61.13101272,1411.5,1411.4,6.79e-06]
[1673628774944,69.48701272,1411.5,1411.4,6.79e-06]
[1673628777446,73.73801272,1411.5,1411.4,6.79e-06]
[1673628777737,76.95024108,1411.5,1411.4,6.79e-06]
[1673628777867,72.5797167,1411.5,1411.4,6.79e-06]
[1673628778617,68.03868,1411.5,1411.4,6.79e-06]
[1673628778821,65.65068,1411.5,1411.4,6.79e-06]
[1673628779650,69.25701272,1411.5,1411.4,6.79e-06]
[1673628779911,76.57167272,1411.5,1411.4,6.79e-06]
[1673628780541,72.96534,1411.5,1411.4,6.79e-06]
[1673628781330,76.57167272,1411.5,1411.4,6.79e-06]
[1673628784542,76.57167272,1411.5,1410.8,7.53960702]
[1673628784543,16.67032,1411.4,1410.8,1.05731629]
[1673628784691,28.34464,1411.2,1411.0,0.064]
[1673628784906,0.23,1411.1,1410.8,7.7292]
[1673628785164,7.08717,1411.0,1410.8,7.7292]
[1673628785322,7.08717,1411.0,1410.8,0.066]
[1673628785323,14.24034,1411.0,1410.8,0.066]
[1673628785531,14.24034,1411.0,1410.7,6.16640446]
[1673628785532,21.32751,1411.0,1410.7,6.16640446]
[1673628785747,21.32751,1411.0,1410.7,4.7967]
[1673628785990,21.32751,1411.0,1410.7,4.7307]
[1673628786797,21.32751,1411.0,1410.7,0.5317]
[1673628787262,21.32751,1411.0,1410.6,8.93749521]
[1673628789168,21.32751,1411.0,1410.6,12.54382793]
[1673628789329,21.32751,1411.0,1410.6,8.93749521]
[1673628789542,0.23,1410.9,1410.6,0.20159521]
[1673628789874,21.26451,1410.8,1410.6,0.05781212]
[1673628790086,41.33051,1410.8,1410.6,0.05781212]
[1673628790795,41.33051,1410.8,1410.7,1.199]
[1673628790796,27.15417,1410.8,1410.7,1.199]
[1673628791002,20.016,1410.8,1410.7,1.199]
[1673628791265,14.24234,1410.8,1410.7,1.199]
[1673628791450,21.33051,1410.8,1410.6,1.25681212]
[1673628792363,21.33051,1410.8,1410.6,0.05781212]
[1673628793740,21.33051,1410.8,1410.5,1.14881212]
[1673628795512,21.33051,1410.8,1410.5,1.04881212]
[1673628795832,14.24234,1410.8,1410.6,1.199]
[1673628796082,21.33051,1410.8,1410.6,1.189]
[1673628796823,21.33051,1410.8,1410.5,1.199]
[1673628797206,7.15417,1410.8,1410.5,1.099]
[1673628797407,14.24234,1410.8,1410.5,1.049]
[1673628797874,14.24234,1410.8,1410.6,1.191]
[1673628798408,21.33051,1410.8,1410.6,1.191]
[1673628799210,14.24234,1410.8,1410.6,1.191]
[1673628799425,14.24234,1410.8,1410.7,1.199]
[1673628799731,0.066,1410.8,1410.7,1.199]
[1673628799950,7.08769,1410.9,1410.7,1.199]
[1673628799951,7.15369,1410.9,1410.7,1.199]
[1673628800161,7.15369,1410.9,1410.8,1.199]
[1673628800162,14.24138,1410.9,1410.8,1.199]
[1673628801031,21.32907,1410.9,1410.8,1.199]
[1673628801409,21.32907,1410.9,1410.8,1.099]
[1673628802771,21.32907,1410.9,1410.7,1.199]
[1673628803016,21.55907,1410.9,1410.5,8.2119]
[1673628803194,21.55907,1410.9,1410.5,9.4109]
[1673628803404,22.09067,1410.9,1410.5,9.4109]
[1673628804921,31.02317,1410.9,1410.5,9.3109]
[1673628807437,31.02317,1410.9,1410.5,18.90051]
[1673628807605,14.77298,1410.9,1410.7,1.199]
[1673628807817,14.77298,1410.9,1410.6,0.066]
[1673628808058,21.86067,1410.9,1410.4,1.203]
[1673628808814,12.6255,1410.8,1410.4,1.203]
[1673628809122,21.2663,1410.7,1410.4,1.203]
[1673628809280,21.3323,1410.7,1410.4,1.203]
[1673628809492,7.15476,1410.7,1410.4,5.21245163]
[1673628809742,7.15476,1410.7,1410.4,5.27845163]
[1673628809956,7.15476,1410.7,1410.4,6.33576792]
[1673628810577,7.15467,1410.7,1410.5,1.01105286]
[1673628810764,7.15467,1410.7,1410.5,2.93673494]
[1673628810976,0.066,1410.7,1410.6,1.199]
[1673628811227,14.24181,1410.9,1410.6,2.39]
[1673628811552,14.24181,1410.9,1410.7,1.199]
[1673628811553,7.08838,1410.8,1410.7,1.199]
[1673628811699,14.24286,1410.8,1410.7,1.199]
[1673628811907,7.15438,1410.8,1410.7,1.199]
[1673628812169,0.066,1410.8,1410.7,1.199]
[1673628812327,21.32974,1410.9,1410.7,1.199]
[1673628812544,21.32974,1410.9,1410.7,1.6946]
[1673628812957,21.32974,1410.9,1410.7,1.199]
[1673628813167,14.24165,1410.9,1410.7,1.099]
[1673628815082,21.32962,1410.9,1410.7,1.099]
[1673628815320,21.32962,1410.9,1410.6,1.257]
[1673628815509,21.32962,1410.9,1410.6,1.199]
[1673628816335,21.32962,1410.9,1410.5,9.27821629]
[1673628816336,21.32962,1410.9,1410.5,10.47721629]
[1673628816545,21.32962,1410.9,1410.6,1.0127456]
[1673628818284,26.69680659,1410.8,1410.5,0.066]
[1673628818588,26.69680659,1410.8,1410.2,2.70929073]
[1673628818589,14.17956,1410.5,1410.2,2.70929073]
[1673628818813,0.066,1410.5,1410.3,1.05731629]
[1673628818967,0.5318,1410.5,1410.3,1.05731629]
[1673628819177,20.4818,1410.6,1410.3,1.05731629]
[1673628819385,20.5478,1410.6,1410.3,1.05731629]
[1673628819800,27.63706,1410.6,1410.4,1.05731629]
[1673628820008,27.63706,1410.6,1410.3,2.64329073]
[1673628820271,27.63706,1410.6,1410.3,1.05731629]
[1673628820501,27.63706,1410.6,1410.3,2.64329073]
[1673628821320,34.72632,1410.6,1410.3,2.64329073]
[1673628821844,41.81558,1410.6,1410.3,2.64329073]
[1673628822224,41.81558,1410.6,1410.3,1.05731629]
[1673628822433,41.81558,1410.6,1410.3,2.64329073]
[1673628823077,34.72632,1410.6,1410.4,1.05731629]
[1673628823272,41.81558,1410.6,1410.4,1.05731629]
[1673628823713,20.5478,1410.6,1410.4,1.05731629]
[1673628824163,27.63711,1410.6,1410.4,1.05731629]
[1673628824335,20.5478,1410.6,1410.4,8.14739629]
[1673628824546,20.016,1410.6,1410.4,8.21339629]
[1673628824991,20.016,1410.6,1410.4,9.79937073]
[1673628825197,20.016,1410.6,1410.4,16.88955073]
[1673628825734,0.066,1410.6,1410.4,12.89560884]
[1673628825960,0.066,1410.7,1410.5,6.00433272]
[1673628826269,40.016,1410.8,1410.6,7.47884575]
[1673628826458,40.016,1410.8,1410.6,7.54484575]
[1673628826459,20.066,1410.8,1410.6,7.54484575]
[1673628826639,0.066,1410.8,1410.6,7.54484575]
[1673628826863,0.066,1410.9,1410.6,14.63391575]
[1673628827075,21.26308,1410.9,1410.6,3.75751303]
[1673628827341,21.32908,1410.9,1410.6,1.2621794]
[1673628828604,14.24134,1410.9,1410.6,2.32251303]
[1673628828980,14.24134,1410.9,1410.6,2.3094037]
[1673628829959,21.32908,1410.9,1410.6,2.3094037]
[1673628830772,7.15367,1410.9,1410.6,9.3985037]
[1673628831009,7.15367,1410.9,1410.6,15.89422416]
[1673628831184,0.066,1410.9,1410.6,22.07390461]
[1673628831396,55.04335,1411.0,1410.7,2.5]
[1673628831594,55.04335,1411.0,1410.7,10.64891363]
[1673628831805,55.04335,1411.0,1410.7,10.71491363]
[1673628832120,55.04335,1411.0,1410.7,1.12633363]
[1673628832330,63.18072254,1411.0,1410.6,10.64135152]
[1673628832568,62.13079,1411.0,1410.6,11.05500415]
[1673628833179,62.12135335,1411.0,1410.6,11.05500415]
[1673628833854,63.17128589,1411.0,1410.6,9.4645037]
[1673628834008,63.17128589,1411.0,1410.6,2.3754037]
[1673628834219,2.5,1410.9,1410.6,2.3094037]
[1673628834463,14.17634,1410.8,1410.6,2.3094037]
[1673628834694,21.33051,1410.8,1410.6,2.3094037]
[1673628836486,21.33051,1410.8,1410.6,1.24907007]
[1673628836648,21.33051,1410.8,1410.6,0.05007007]
[1673628837278,2.5,1410.7,1410.6,0.05007007]
[1673628837515,23.76601,1410.7,1410.6,0.05007007]
[1673628837841,23.83201,1410.7,1410.6,0.05007007]
[1673628838524,21.33201,1410.7,1410.6,0.05007007]
[1673628839436,0.066,1410.7,1410.6,0.05007007]
[1673628839725,7.08867,1410.7,1410.6,0.05007007]
[1673628839938,7.15467,1410.7,1410.6,0.74254548]
[1673628841063,0.066,1410.7,1410.6,0.74254548]
[1673628841270,22.95218,1410.8,1410.6,0.74254548]
[1673628841505,8.7755,1410.8,1410.6,0.05007007]
[1673628841827,0.5977,1410.8,1410.6,0.05007007]
[1673628841991,0.5317,1410.8,1410.6,7.13909007]
[1673628842203,0.5317,1410.8,1410.6,7.20509007]
[1673628842555,0.5317,1410.8,1410.6,8.2654637]
[1673628842740,0.5317,1410.8,1410.6,7.20513007]
[1673628843085,21.86134,1410.9,1410.6,0.11607007]
[1673628843303,21.86134,1410.9,1410.6,0.05007007]
[1673628843832,22.91127254,1410.9,1410.6,0.05007007]
[1673628844415,21.86134,1410.9,1410.6,7.13922007]
[1673628844655,21.86134,1410.9,1410.6,7.20522007]
[1673628845079,7.68532,1410.9,1410.6,7.20522007]
[1673628845288,7.68532,1410.9,1410.6,8.2655537]
[1673628845461,7.68532,1410.9,1410.7,0.69303882]
[1673628845706,7.68532,1410.9,1410.6,15.3547037]
[1673628845878,7.68532,1410.9,1410.7,0.69307294]
[1673628846090,14.77345,1410.9,1410.7,0.69307294]
[1673628846299,14.77299,1410.9,1410.7,0.69307294]
[1673628846540,7.68527,1410.9,1410.7,0.69307294]
[1673628847574,0.066,1410.9,1410.8,1.198]
[1673628847775,20.4816,1411.0,1410.8,8.97915254]
[1673628847776,20.016,1411.0,1410.8,8.97915254]
[1673628847990,0.066,1411.0,1410.8,15.44034]
[1673628848258,12.1534,1411.1,1410.8,15.44034]
[1673628848412,11.6218,1411.1,1410.8,15.44034]
[1673628848621,11.6218,1411.1,1410.8,16.50067363]
[1673628848947,11.6218,1411.1,1410.8,18.99223191]
[1673628849162,11.6218,1411.1,1410.8,20.16907973]
[1673628849526,11.6218,1411.1,1410.9,0.69291353]
[1673628849732,11.6218,1411.1,1410.8,20.16907973]
[1673628849952,11.6218,1411.1,1410.9,1.88572549]
[1673628850105,0.066,1411.1,1411.0,28.75541527]
[1673628850308,20.016,1411.2,1411.0,30.97639343]
[1673628850562,0.066,1411.2,1411.1,4.29663934]
[1673628850882,0.002,1411.3,1411.1,18.46995934]
[1673628851100,0.002,1411.3,1411.2,4.896]
[1673628851311,0.002,1411.3,1411.2,11.98216]
[1673628851463,0.002,1411.3,1411.2,12.04816]
[1673628851675,0.002,1411.3,1411.2,15.45838999]
[1673628851902,0.002,1411.3,1411.2,26.15088271]
[1673628852562,0.002,1411.3,1411.2,8.37222999]
[1673628852739,7.08766,1411.3,1411.2,2.462]
[1673628852946,7.15366,1411.3,1411.1,4.191]
[1673628853195,7.15366,1411.3,1411.1,7.79733272]
[1673628853390,7.15366,1411.3,1411.1,8.73273303]
[1673628854019,0.068,1411.3,1411.1,4.257]
[1673628854231,0.002,1411.3,1411.1,4.191]
[1673628854441,0.002,1411.3,1411.1,11.2775]
[1673628854670,0.002,1411.3,1411.2,2.5]
[1673628855192,7.08518,1411.4,1411.1,11.3435]
[1673628855411,0.00288854,1411.2,1411.1,11.3435]
[1673628855577,0.00288854,1411.2,1411.1,16.78397926]
[1673628855793,0.00288854,1411.2,1411.1,7.19747926]
[1673628856072,0.00288854,1411.2,1411.1,6.757]
[1673628856428,0.00288854,1411.2,1411.1,4.257]
[1673628856750,0.00288854,1411.2,1411.1,4.191]
[1673628857980,22.70736854,1411.2,1410.8,1.198]
[1673628858190,22.70736854,1411.2,1410.8,4.80433272]
[1673628859031,22.70736854,1411.2,1410.8,1.198]
[1673628859778,0.5316,1411.1,1410.8,1.198]
[1673628860043,7.08678,1411.1,1410.8,1.198]
[1673628860189,7.15278,1411.1,1410.8,1.198]
[1673628860394,21.32622,1411.1,1410.7,9.5162]
[1673628860721,21.32622,1411.1,1410.7,4.86933272]
[1673628860924,0.00204308,1410.7,1410.6,7.083]
[1673628861181,1.38204308,1410.7,1410.6,8.55898219]
[1673628861355,1.38204308,1410.7,1410.6,0.77218219]
[1673628861641,1.38204308,1410.7,1410.6,0.70618219]
[1673628862000,0.00204308,1410.7,1410.6,0.70618219]
[1673628862411,0.00204308,1410.7,1410.6,14.88454219]
[1673628862618,0.00204308,1410.7,1410.6,16.01087582]
[1673628862808,0.00204308,1410.7,1410.6,25.68776427]
[1673628863287,0.00204308,1410.7,1410.6,18.59858427]
[1673628863499,0.00204308,1410.7,1410.6,28.47626472]
[1673628863651,0.00204308,1410.7,1410.6,31.47626472]
[1673628864742,0.00204308,1410.7,1410.6,35.08259744]
[1673628864962,0.00204308,1410.7,1410.6,36.26885564]
[1673628865127,0.00204308,1410.7,1410.6,35.20852201]
[1673628865760,0.00204308,1410.7,1410.6,38.52215459]
[1673628866073,0.00204308,1410.7,1410.6,38.52039782]
[1673628868176,0.00204308,1410.7,1410.6,11.00235475]
[1673628868424,0.00204308,1410.7,1410.6,6.27218219]
[1673628868638,0.00204308,1410.7,1410.6,21.5097481]
[1673628869820,0.00204308,1410.7,1410.6,11.9205681]
[1673628870149,0.00204308,1410.7,1410.6,19.0097481]
[1673628870276,0.00204308,1410.7,1410.6,11.9205681]
[1673628870495,0.00204308,1410.7,1410.6,19.0097481]
[1673628870869,0.00204308,1410.7,1410.6,11.9205681]
[1673628871747,0.00204308,1410.7,1410.6,19.0097481]
[1673628872381,0.00204308,1410.7,1410.6,29.70526082]
[1673628872639,0.00204308,1410.7,1410.6,23.80233902]
[1673628873065,0.00204308,1410.7,1410.6,22.61608082]
[1673628873233,0.00204308,1410.7,1410.6,29.70526082]
[1673628873443,0.00204308,1410.7,1410.6,23.80233902]
[1673628874266,1.38204308,1410.7,1410.6,4.8313881]
[1673628874647,1.38204308,1410.7,1410.5,2.77500188]
[1673628874648,7.08867,1410.7,1410.5,0.066]
[1673628874860,7.15467,1410.7,1410.5,3.0]
[1673628875319,0.066,1410.7,1410.5,7.66553863]
[1673628875523,7.08861,1410.8,1410.5,7.66553863]
[1673628875524,7.15418,1410.8,1410.5,23.92044086]
[1673628875754,7.15418,1410.8,1410.6,0.70646836]
[1673628876689,14.24254,1410.8,1410.6,0.70646836]
[1673628876898,14.24254,1410.8,1410.5,8.91779683]
[1673628877182,21.3309,1410.8,1410.5,3.066]
[1673628877371,21.3309,1410.8,1410.5,3.0]
[1673628877958,21.3309,1410.8,1410.4,12.40431591]
[1673628878281,21.3309,1410.8,1410.5,0.70639582]
[1673628878504,21.3309,1410.8,1410.4,4.12520591]
[1673628878726,21.3309,1410.8,1410.5,0.70655711]
[1673628879107,21.3309,1410.8,1410.5,3.70655711]
[1673628879323,21.3309,1410.8,1410.5,3.0]
[1673628879527,21.3309,1410.8,1410.4,5.31146411]
[1673628879748,21.3309,1410.8,1410.5,0.70653506]
[1673628880052,21.3309,1410.8,1410.5,3.70653506]
[1673628880259,21.3309,1410.8,1410.5,3.0]
[1673628881264,21.32889501,1410.8,1410.5,3.0]
[1673628882415,7.15217501,1410.8,1410.5,17.17935]
[1673628882624,0.06399501,1410.8,1410.6,0.70634146]
[1673628882840,28.82229501,1410.9,1410.6,21.97319146]
[1673628883005,35.91009501,1410.9,1410.6,14.24367]
[1673628883356,42.99789501,1410.9,1410.6,7.1547]
[1673628883578,35.91009501,1410.9,1410.6,7.1547]
[1673628883735,50.08543501,1410.9,1410.6,0.066]
[1673628884070,50.08543501,1410.9,1410.5,25.32742591]
[1673628884071,42.99763501,1410.9,1410.5,25.39342591]
[1673628884283,42.99763501,1410.9,1410.6,0.70636945]
[1673628884502,42.99763501,1410.9,1410.6,7.79550945]
[1673628884830,35.90996501,1410.9,1410.6,0.066]
[1673628884991,42.46620501,1410.9,1410.5,25.39331591]
[1673628885197,49.55404501,1410.9,1410.6,0.70638137]
[1673628887713,49.55027008,1410.9,1410.6,0.70638137]
[1673628889600,49.55027008,1410.9,1410.5,7.73153863]
[1673628889819,49.55027008,1410.9,1410.6,0.70631474]
[1673628889992,0.5317,1410.8,1410.6,0.70631474]
[1673628890206,7.62001,1410.8,1410.6,0.70631474]
[1673628890520,7.68400501,1410.8,1410.6,0.70631474]
[1673628890628,0.59569501,1410.8,1410.6,9.34816608]
[1673628891034,35.31059507,1410.9,1410.6,22.88621134]
[1673628891035,28.81852008,1410.9,1410.6,22.88621134]
[1673628891180,35.90625008,1410.9,1410.6,15.79703134]
[1673628891777,35.90625008,1410.9,1410.6,16.85623725]
[1673628892306,28.81852008,1410.9,1410.7,7.79511892]
[1673628892521,20.54559501,1410.9,1410.7,20.31464834]
[1673628892790,20.01399501,1410.9,1410.8,25.67003335]
[1673628892961,0.06399501,1410.9,1410.8,25.73603335]
[1673628893149,12.48049501,1411.0,1410.8,31.1953135]
[1673628893356,11.94889501,1411.0,1410.9,0.70656428]
[1673628893561,11.94889501,1411.0,1410.9,0.70684051]
[1673628893928,11.94889501,1411.0,1410.9,21.96985051]
[1673628894248,11.94889501,1411.0,1410.9,18.88233117]
[1673628894827,11.94889501,1411.0,1410.9,18.17549066]
[1673628895477,11.94889501,1411.0,1410.9,25.96998085]
[1673628895895,0.06399501,1411.0,1410.9,34.82451948]
[1673628896050,20.01688355,1411.2,1410.9,36.01207492]
[1673628896234,20.01688355,1411.2,1411.0,5.50502768]
[1673628896431,20.01688355,1411.2,1411.0,11.95136749]
[1673628896432,0.06688355,1411.2,1411.0,11.95136749]
[1673628896610,0.00288854,1411.2,1411.0,14.45136749]
[1673628897281,0.00288854,1411.2,1411.0,7.36420749]
[1673628897482,0.00068854,1411.2,1411.0,7.36420749]
[1673628897715,0.00068854,1411.2,1411.1,3.23642075]
[1673628898092,0.00068854,1411.2,1411.1,0.73642075]
[1673628898305,0.00068854,1411.2,1411.0,14.45136749]
[1673628898820,0.00068854,1411.2,1411.1,2.5]
[1673628900165,0.00068854,1411.2,1411.1,16.67332]
[1673628900283,0.00068854,1411.2,1411.1,16.73932]
[1673628900813,0.00068854,1411.2,1411.1,23.82598]
[1673628901051,0.00068854,1411.2,1411.1,27.64707975]
[1673628902388,0.00068854,1411.2,1411.1,20.56041975]
[1673628902605,0.00068854,1411.2,1411.1,13.47375975]
[1673628903074,0.00068854,1411.2,1411.1,20.56041975]
[1673628903458,0.00068854,1411.2,1411.1,13.47375975]
[1673628903656,0.00068854,1411.2,1411.1,10.97375975]
[1673628904507,0.00068854,1411.2,1411.1,13.47375975]
[1673628904747,0.00068854,1411.2,1411.1,3.88709975]
[1673628904957,0.00068854,1411.2,1411.1,10.90775975]
[1673628905121,0.00068854,1411.2,1411.1,7.15266]
[1673628906414,0.00068854,1411.2,1411.1,16.73932]
[1673628906809,0.00068854,1411.2,1411.1,20.34565272]
[1673628907342,0.00068854,1411.2,1411.1,13.25899272]
[1673628908113,0.00068854,1411.2,1411.1,6.17233272]
[1673628908292,0.00068854,1411.2,1411.1,9.28531899]
[1673628908497,0.00068854,1411.2,1411.1,16.37197899]
[1673628909262,0.00068854,1411.2,1411.1,23.45863899]
[1673628909656,0.00068854,1411.2,1411.1,16.37197899]
[1673628910685,0.00068854,1411.2,1411.1,13.87197899]
[1673628911684,0.00068854,1411.2,1411.1,10.75899272]
[1673628912214,0.00068854,1411.2,1411.1,29.83684006]
[1673628912438,0.00068854,1411.2,1411.1,31.02261715]
[1673628913243,0.00068854,1411.2,1411.1,32.08182306]
[1673628913440,0.00068854,1411.2,1411.1,31.02261715]
[1673628913655,0.00068854,1411.2,1411.1,36.29253582]
[1673628916063,0.00068854,1411.2,1411.1,35.10675873]
[1673628917043,0.00068854,1411.2,1411.1,13.14125139]
[1673628917205,0.00068854,1411.2,1411.1,6.67233272]
[1673628917545,0.00068854,1411.2,1411.1,13.75899272]
[1673628917747,0.00068854,1411.2,1411.1,6.67233272]
[1673628920836,0.00068854,1411.2,1411.1,13.75899272]
[1673628920999,0.00068854,1411.2,1411.1,20.84565272]
[1673628921211,0.00068854,1411.2,1411.1,25.17205899]
[1673628922891,0.00068854,1411.2,1411.1,24.67205899]
[1673628923102,0.00068854,1411.2,1411.1,31.77471899]
[1673628923522,0.00068854,1411.2,1411.1,32.4804502]
[1673628925719,0.00068854,1411.2,1411.1,33.66646818]
[1673628927105,0.00068854,1411.2,1411.1,34.86546818]
[1673628927416,0.00068854,1411.2,1411.1,35.92467409]
[1673628930836,0.00068854,1411.2,1411.1,37.51341777]
[1673628931858,0.00068854,1411.2,1411.1,36.45421186]
[1673628933267,0.03725616,1411.5,1411.2,2.5]
[1673628933494,0.03725616,1411.5,1411.3,18.48454922]
[1673628933813,0.03725616,1411.5,1411.3,17.79365272]
[1673628933972,0.03725616,1411.5,1411.3,18.98147905]
[1673628934147,0.03725616,1411.5,1411.4,2.5]
[1673628934358,0.03725616,1411.5,1411.3,26.11713905]
[1673628934569,0.03725616,1411.5,1411.4,2.6117139]
[1673628934829,0.03725616,1411.5,1411.4,9.6968739]
[1673628935034,0.03725616,1411.5,1411.4,16.7980339]
[1673628935403,0.03725616,1411.5,1411.4,17.50492769]
[1673628936087,0.03725616,1411.5,1411.4,20.50492769]
[1673628936346,0.03725616,1411.5,1411.4,23.00492769]
[1673628937204,0.03725616,1411.5,1411.4,24.19254185]
[1673628937534,0.03725616,1411.5,1411.4,30.09008769]
[1673628938351,0.03725616,1411.5,1411.4,31.27757892]
[1673628938608,0.03725616,1411.5,1411.4,20.50492769]
[1673628939765,0.03725616,1411.5,1411.4,23.00492769]
[1673628939961,0.03725616,1411.5,1411.4,24.06508335]
[1673628940398,0.03725616,1411.5,1411.4,36.09442041]
[1673628940568,0.03725616,1411.5,1411.4,38.87076048]
[1673628940569,6.16e-06,1411.5,1411.4,38.87076048]
[1673628940782,0.05752685,1411.7,1411.5,2.5]
[1673628941011,0.05752685,1411.7,1411.6,3.85633272]
[1673628941239,0.05752685,1411.7,1411.6,24.12752651]
[1673628941445,0.05752685,1411.7,1411.6,17.05937651]
[1673628942017,0.05752685,1411.7,1411.6,8.06933272]
[1673628942163,0.05752685,1411.7,1411.6,7.81933272]
[1673628942391,0.05752685,1411.7,1411.6,14.90348272]
[1673628943091,0.05752685,1411.7,1411.6,3.016]
[1673628943300,0.05752685,1411.7,1411.6,3.0]
[1673628943554,0.05752685,1411.7,1411.6,10.08415]
[1673628943745,0.05752685,1411.7,1411.6,10.10015]
[1673628948307,0.05752685,1411.7,1411.6,3.016]
[1673628948479,0.05752685,1411.7,1411.6,3.0]
[1673628948880,0.05752685,1411.7,1411.6,10.08415]
[1673628949104,0.05752685,1411.7,1411.6,10.10015]
[1673628951639,0.05752685,1411.7,1411.6,3.016]
[1673628951846,0.05752685,1411.7,1411.6,3.0]
[1673628952058,22.68847685,1411.7,1411.5,0.068]
[1673628952250,22.75247186,1411.7,1411.5,0.002]
[1673628952466,23.8024044,1411.7,1411.5,0.002]
[1673628953041,23.75245,1411.6,1411.5,0.002]
[1673628953192,24.86637755,1411.6,1411.5,0.002]
[1673628953402,11.67642937,1411.6,1411.5,0.002]
[1673628954034,11.67642937,1411.6,1411.2,14.18758]
[1673628954244,31.77608908,1411.6,1411.2,0.016]
[1673628954473,2.02817621,1411.5,1411.2,3.0]
[1673628954858,14.17032,1411.4,1411.2,3.0]
[1673628955130,14.23431501,1411.4,1411.2,3.0]
[1673628955341,7.14915501,1411.4,1411.2,3.0]
[1673628955713,0.06399501,1411.4,1411.2,3.0]
[1673628956076,16.04270501,1411.5,1411.2,3.0]
[1673628956271,16.57410501,1411.5,1411.2,3.0]
[1673628956453,16.04270501,1411.5,1411.2,10.08603]
[1673628956664,16.04270501,1411.5,1411.2,10.10203]
[1673628957074,24.17754755,1411.5,1411.2,0.016]
[1673628957292,1.04993254,1411.4,1411.1,3.0]
[1673628957500,1.04993254,1411.4,1411.0,4.12560769]
[1673628957501,21.25698,1411.3,1411.0,4.12560769]
[1673628957753,21.32097501,1411.3,1411.0,3.0]
[1673628958790,14.23531501,1411.3,1411.0,3.0]
[1673628959778,21.32097501,1411.3,1411.0,3.0]
[1673628961254,21.32097501,1411.3,1410.9,0.066]
[1673628961255,1.192,1411.2,1410.9,0.066]
[1673628961429,14.17434,1411.0,1410.9,3.0]
[1673628961642,21.32550501,1411.0,1410.9,0.77201438]
[1673628961882,21.32550501,1411.0,1410.8,3.19806747]
[1673628962096,23.05610501,1411.0,1410.8,0.13206747]
[1673628962285,1.199,1410.9,1410.8,0.13206747]
[1673628962464,22.46263,1410.9,1410.5,0.99167516]
[1673628962671,22.52662501,1410.9,1410.5,5.35336833]
[1673628962886,22.52662501,1410.9,1410.6,0.75536045]
[1673628963342,22.52662501,1410.9,1410.5,6.17233272]
[1673628963620,22.52662501,1410.9,1410.5,6.12233272]
[1673628963942,22.52662501,1410.9,1410.6,2.5]
[1673628964398,22.52662501,1410.9,1410.5,6.17233272]
[1673628964733,22.52662501,1410.9,1410.5,6.12233272]
[1673628965436,1.196,1410.6,1410.5,0.016]
[1673628965770,23.88154,1410.6,1410.3,0.15287894]
[1673628965980,22.74953501,1410.6,1410.3,0.15287894]
[1673628966196,14.71162,1410.5,1410.3,0.15287894]
[1673628966353,21.86569501,1410.5,1410.3,0.15287894]
[1673628966821,33.89079501,1410.5,1410.3,0.15287894]
[1673628966977,35.07979501,1410.5,1410.3,0.15287894]
[1673628967194,38.68612773,1410.5,1410.3,0.15287894]